fUSD/lending_fUSD_20240203
["ID","MTS","AMOUNT","RATE_DAILY","PERIOD"]
[313233095,1706982423050,-150.0,0.00022552,2]
[313233096,1706982443274,297.28761012,0.00022478,2]
[313233097,1706982476786,-5.0,0.00022552,2]
[313233098,1706982476809,-10.0,0.00022554,2]
[313233099,1706982476833,-185.0,0.00022555,2]
[313233100,1706982485319,-200.0,0.00022555,2]
[313233101,1706982497234,-150.0,0.00022554,2]
[313233105,1706982539451,256.67,0.00021684,2]
[313233106,1706982546340,1000.0,0.00022468,2]
[313233107,1706982557574,158.43016604,0.00022456,2]
[313233108,1706982611999,152.46,0.00019768,2]
[313233109,1706982626028,539.92,0.00021686,2]
[313233118,1706982632339,-5.0,0.00022554,2]
[313233119,1706982632350,-1494.715,0.00022555,2]
[313233120,1706982632362,-7098.76328458,0.00022555,2]
[313233121,1706982632397,-25076.93044767,0.00022555,2]
[313233122,1706982632407,-56414.295217,0.00022556,2]
[313233123,1706982632416,-464.57835151,0.00022564,2]
[313233124,1706982632425,-448.77994219,0.00022565,2]
[313233125,1706982632434,-22415.38,0.00022566,2]
[313233126,1706982632443,-1075.35,0.00022566,2]
[313233127,1706982632453,-202.76663822,0.00022566,2]
[313233128,1706982632462,-2080.3,0.00022566,2]
[313233129,1706982632471,-3820.99,0.00022566,2]
[313233130,1706982632480,-16549.13,0.00022566,2]
[313233131,1706982632490,-1000.0,0.00022568,2]
[313233132,1706982632499,-37059.95526281,0.00022568,2]
[313233133,1706982632515,-22857.49012585,0.00022568,2]
[313233134,1706982632526,-40082.55461134,0.00022568,2]
[313233135,1706982632535,-163.63,0.00022578,2]
[313233136,1706982632545,-499.99,0.00022578,2]
[313233137,1706982632554,-1383.7,0.00022578,2]
[313233138,1706982632563,-297.28761012,0.00022584,2]
[313233139,1706982632572,-209.66318511,0.00022629,2]
[313233140,1706982632582,-317.49900821,0.00022643,2]
[313233141,1706982632593,-1300.0,0.0002265,2]
[313233142,1706982632602,-374.94226822,0.00022658,2]
[313233143,1706982632612,-356.8393713,0.00022663,2]
[313233144,1706982632621,-155.65924392,0.00022663,2]
[313233145,1706982632630,-371.06691339,0.00022663,2]
[313233146,1706982632639,-168.37993501,0.00022663,2]
[313233147,1706982632649,-2754.2862681,0.00022663,2]
[313233148,1706982632658,-263.95414554,0.00022664,2]
[313233149,1706982632667,-155.59844655,0.00022664,2]
[313233150,1706982632677,-178.19299601,0.00022664,2]
[313233152,1706982632686,-353.76039003,0.00022664,2]
[313233154,1706982632695,-361.06396576,0.00022664,2]
[313233156,1706982632705,-155.0,0.00022664,2]
[313233158,1706982632714,-349.7261996,0.00022664,2]
[313233160,1706982632723,-7918.47641999,0.00022664,2]
[313233162,1706982632732,-244.01749982,0.00022664,2]
[313233164,1706982632742,-583.2561244,0.00022664,2]
[313233166,1706982632751,-310.17962013,0.00022664,2]
[313233168,1706982632759,-942.03003609,0.00022664,2]
[313233170,1706982632768,-1062.12667326,0.00022664,2]
[313233172,1706982632778,-2305.83157254,0.00022664,2]
[313233174,1706982632787,-273.663813,0.00022664,2]
[313233176,1706982632796,-196.87082677,0.00022664,2]
[313233178,1706982632805,-155.0,0.00022664,2]
[313233180,1706982632815,-190.97652873,0.00022664,2]
[313233182,1706982632824,-157.34868034,0.00022664,2]
[313233184,1706982632835,-4255.31741538,0.00022664,2]
[313233186,1706982632844,-240.30506348,0.00022664,2]
[313233188,1706982632854,-2325.42076986,0.00022664,2]
[313233190,1706982632863,-6348.95972,0.00022664,2]
[313233192,1706982632873,-501.74130467,0.00022665,2]
[313233194,1706982632882,-5653.85743183,0.00022665,2]
[313233198,1706982632909,-2911.22314988,0.00022665,2]
[313233200,1706982632918,-12434.67585012,0.00022665,2]
[313233204,1706982632952,-517.41,0.00022665,2]
[313233207,1706982632963,-63847.8538495,0.00022665,2]
[313233210,1706982632984,-200.0,0.00022666,2]
[313233212,1706982632994,-200.0,0.00022666,2]
[313233214,1706982633004,-200.0,0.00022666,2]
[313233216,1706982633014,-158.23937767,0.00022666,2]
[313233218,1706982633024,-721.79551822,0.00022666,2]
[313233220,1706982633033,-157.45268127,0.00022666,2]
[313233222,1706982633043,-196.07227262,0.00022666,2]
[313233224,1706982633053,-159.76048776,0.00022666,2]
[313233226,1706982633062,-274.0205093,0.00022666,2]
[313233228,1706982633073,-156.72449674,0.00022666,2]
[313233230,1706982633084,-244.82534313,0.00022666,2]
[313233232,1706982633093,-245.35284397,0.00022666,2]
[313233234,1706982633102,-400.0,0.00022666,2]
[313233237,1706982633111,-233.42707403,0.00022666,2]
[313233239,1706982633121,-157.16716868,0.00022666,2]
[313233241,1706982633131,-308.6578069,0.00022666,2]
[313233243,1706982633140,-157.04298213,0.00022666,2]
[313233245,1706982633150,-311.59150887,0.00022666,2]
[313233247,1706982633159,-586.06208345,0.00022666,2]
[313233249,1706982633168,-155.83298268,0.00022666,2]
[313233251,1706982633178,-155.52012042,0.00022666,2]
[313233253,1706982633187,-366.02470053,0.00022666,2]
[313233255,1706982633197,-797.30628427,0.00022666,2]
[313233257,1706982633206,-313.5325998,0.00022666,2]
[313233259,1706982633216,-253.49547449,0.00022666,2]
[313233261,1706982633225,-285.95951761,0.00022666,2]
[313233263,1706982633235,-2605.00006575,0.00022666,2]
[313233265,1706982633245,-302.84837453,0.00022666,2]
[313233267,1706982633256,-163.20634096,0.00022666,2]
[313233269,1706982633265,-156.13081678,0.00022666,2]
[313233271,1706982633274,-1399.55391951,0.00022666,2]
[313233273,1706982633283,-354.42047342,0.00022666,2]
[313233275,1706982633296,-4117.11213102,0.00022666,2]
[313233277,1706982633305,-343.64376073,0.00022666,2]
[313233279,1706982633315,-2791.07605815,0.00022666,2]
[313233281,1706982633326,-339.27786847,0.00022666,2]
[313233283,1706982633337,-248.1413861,0.00022666,2]
[313233284,1706982633347,-306.0102269,0.00022666,2]
[313233285,1706982633357,-171.28307866,0.00022666,2]
[313233286,1706982633367,-156.98966679,0.00022666,2]
[313233287,1706982633376,-310.85441353,0.00022666,2]
[313233288,1706982633386,-434.36220237,0.00022666,2]
[313233289,1706982633396,-1418.81878163,0.00022666,2]
[313233290,1706982633405,-896.60943409,0.00022666,2]
[313233291,1706982633415,-292.70291374,0.00022666,2]
[313233292,1706982633424,-270.5250978,0.00022666,2]
[313233293,1706982633433,-758.32534828,0.00022666,2]
[313233294,1706982633443,-280.07934432,0.00022666,2]
[313233295,1706982633452,-155.72811988,0.00022666,2]
[313233296,1706982633461,-319.46379714,0.00022666,2]
[313233297,1706982633472,-155.0,0.00022666,2]
[313233298,1706982633481,-1815.4533037,0.00022666,2]
[313233299,1706982633490,-175.53142428,0.00022666,2]
[313233300,1706982633501,-155.25034057,0.00022666,2]
[313233301,1706982633512,-261.78419109,0.00022666,2]
[313233302,1706982633521,-201.46673912,0.00022666,2]
[313233303,1706982633531,-312.68730673,0.00022666,2]
[313233304,1706982633541,-375.98637531,0.00022666,2]
[313233305,1706982633550,-156.45061143,0.00022666,2]
[313233306,1706982633559,-1070.3857305,0.00022666,2]
[313233307,1706982633569,-2907.57194217,0.00022666,2]
[313233308,1706982633578,-414.95892919,0.00022666,2]
[313233309,1706982633588,-296.44165808,0.00022666,2]
[313233310,1706982633597,-155.44558031,0.00022667,2]
[313233311,1706982633606,-3461.07380061,0.00022667,2]
[313233318,1706982638326,-369.77723094,0.00022554,2]
[313233319,1706982638381,-38.35486813,0.00022554,2]
[313233320,1706982638391,-4349.55682986,0.00022667,2]
[313233321,1706982638405,-155.0,0.00022667,2]
[313233322,1706982638415,-156.9595711,0.00022667,2]
[313233323,1706982638425,-8245.4665422,0.00022668,2]
[313233324,1706982638613,-438.33634555,0.00022668,2]
[313233325,1706982638625,-6721.13279701,0.00022668,2]
[313233326,1706982638636,-280.0,0.00022668,2]
[313233327,1706982638652,-1053.18337435,0.00022668,2]
[313233329,1706982638672,-47549.82584773,0.00022668,2]
[313233331,1706982638684,-369.0296654,0.00022668,2]
[313233334,1706982638698,-1669.89312,0.00022668,2]
[313233336,1706982638710,-668.50793059,0.00022668,2]
[313233495,1706982640939,-941.8627081,0.00022668,2]
[313233496,1706982640995,-13047.7365,0.00022668,2]
[313233497,1706982641007,-5663.52080731,0.00022668,2]
[313233498,1706982641105,-858.8244,0.00022668,2]
[313233499,1706982641117,-7062.94183909,0.00022668,2]
[313233500,1706982641129,-2627.20409486,0.00022668,2]
[313233501,1706982641162,-641.45608331,0.00022668,2]
[313233502,1706982641175,-1080.10559126,0.00022668,2]
[313233503,1706982641866,-4801.01390168,0.00022668,2]
[313233527,1706982643759,-40410.16888868,0.00022668,2]
[313233529,1706982643771,-2622.23902497,0.00022668,2]
[313233531,1706982643783,-4724.27421623,0.00022668,2]
[313233533,1706982643794,-1324.76438977,0.00022668,2]
[313233535,1706982643807,-4540.0,0.00022668,2]
[313233536,1706982643979,-101617.23967092,0.00022668,2]
[313233537,1706982643999,-33458.04314514,0.00022669,2]
[313233538,1706982644010,-158.43016604,0.00022678,2]
[313233539,1706982644022,-297.28761012,0.00022689,2]
[313233540,1706982644032,-1000.0,0.000227,2]
[313233541,1706982644042,-211.97217471,0.00022701,2]
[313233542,1706982644051,-150.0,0.00022726,2]
[313233543,1706982644060,-150.0,0.00022728,2]
[313233544,1706982644070,-150.0,0.00022728,2]
[313233545,1706982644079,-150.0,0.00022733,2]
[313233546,1706982644089,-150.0,0.00022733,2]
[313233548,1706982644099,-150.0,0.00022737,2]
[313233550,1706982644108,-150.0,0.00022739,2]
[313233552,1706982644118,-306.18723121,0.00022746,2]
[313233554,1706982644127,-150.0,0.00022754,2]
[313233556,1706982644136,-150.0,0.00022755,2]
[313233558,1706982644145,-150.0,0.00022757,2]
[313233560,1706982644154,-150.0,0.00022758,2]
[313233562,1706982644164,-300.0,0.00022759,2]
[313233564,1706982644173,-150.0,0.00022763,2]
[313233566,1706982644183,-163.63,0.00022768,2]
[313233568,1706982644193,-1394.73773573,0.0002277,2]
[313233570,1706982644202,-150.0,0.00022773,2]
[313233571,1706982644213,-300.0,0.00022773,2]
[313233572,1706982644223,-150.0,0.00022774,2]
[313233573,1706982644233,-150.0,0.00022774,2]
[313233574,1706982644248,-150.0,0.00022775,2]
[313233575,1706982644257,-150.0,0.00022778,2]
[313233576,1706982644267,-150.0,0.00022789,2]
[313233577,1706982644276,-150.0,0.00022789,2]
[313233578,1706982644286,-150.0,0.00022791,2]
[313233579,1706982644295,-297.28761012,0.00022795,2]
[313233580,1706982644306,-150.0,0.00022796,2]
[313233581,1706982644316,-150.0,0.00022797,2]
[313233582,1706982644326,-41855.55395413,0.000228,2]
[313233583,1706982644340,-150.0,0.00022801,2]
[313233584,1706982644350,-150.0,0.00022803,2]
[313233585,1706982644359,-150.0,0.00022804,2]
[313233586,1706982644368,-150.0,0.00022805,2]
[313233587,1706982644378,-150.0,0.00022806,2]
[313233588,1706982644388,-150.0,0.00022808,2]
[313233589,1706982644397,-150.0,0.00022808,2]
[313233590,1706982644407,-1500.0,0.00022809,2]
[313233591,1706982644417,-150.0,0.00022809,2]
[313233592,1706982644427,-1500.0,0.0002281,2]
[313233593,1706982644437,-150.0,0.00022812,2]
[313233594,1706982644446,-1500.0,0.00022813,2]
[313233595,1706982644457,-800.0,0.00022816,2]
[313233596,1706982644467,-150.0,0.00022816,2]
[313233597,1706982644476,-150.0,0.00022819,2]
[313233598,1706982644487,-150.0,0.00022826,2]
[313233599,1706982644497,-150.0,0.00022829,2]
[313233600,1706982644508,-150.0,0.00022834,2]
[313233601,1706982644519,-150.0,0.00022836,2]
[313233602,1706982644529,-150.0,0.00022837,2]
[313233603,1706982644540,-150.0,0.00022838,2]
[313233604,1706982644549,-150.0,0.00022838,2]
[313233605,1706982644558,-150.0,0.00022839,2]
[313233606,1706982644568,-152.46,0.0002284,2]
[313233607,1706982644578,-150.0,0.00022842,2]
[313233608,1706982644588,-150.0,0.00022844,2]
[313233609,1706982644597,-150.0,0.00022845,2]
[313233610,1706982644607,-1500.0,0.00022847,2]
[313233611,1706982644811,-150.0,0.00022847,2]
[313233612,1706982644821,-150.0,0.00022847,2]
[313233613,1706982644831,-150.0,0.00022849,2]
[313233614,1706982644843,-150.0,0.00022855,2]
[313233615,1706982644854,-150.0,0.0002286,2]
[313233616,1706982644864,-150.0,0.0002287,2]
[313233617,1706982644874,-150.0,0.00022872,2]
[313233618,1706982644884,-150.0,0.00022873,2]
[313233619,1706982644893,-150.0,0.00022874,2]
[313233620,1706982644904,-150.0,0.00022876,2]
[313233621,1706982644913,-150.0,0.00022878,2]
[313233622,1706982644924,-150.0,0.00022879,2]
[313233623,1706982644937,-150.0,0.0002288,2]
[313233624,1706982644946,-150.0,0.00022888,2]
[313233625,1706982644957,-150.0,0.00022889,2]
[313233626,1706982644966,-150.0,0.00022892,2]
[313233627,1706982644976,-150.0,0.00022892,2]
[313233628,1706982644986,-150.0,0.00022895,2]
[313233629,1706982644995,-150.0,0.00022897,2]
[313233630,1706982645005,-10452.73974334,0.000229,2]
[313233631,1706982645016,-444.66997137,0.000229,2]
[313233632,1706982645026,-5000.0,0.000229,2]
[313233633,1706982645035,-157.25879482,0.000229,2]
[313233634,1706982645045,-153.04974346,0.000229,2]
[313233635,1706982645054,-297.28761012,0.000229,2]
[313233636,1706982645064,-2337.6225413,0.000229,2]
[313233637,1706982645074,-3183.74488164,0.000229,2]
[313233638,1706982645085,-175.3807608,0.000229,6]
[313233639,1706982645095,-158.43016604,0.000229,2]
[313233640,1706982645105,-211.9721747,0.000229,2]
[313233641,1706982645116,-10868.28341556,0.000229,2]
[313233642,1706982645126,-182.91550859,0.000229,2]
[313233643,1706982645135,-367.87447775,0.000229,2]
[313233644,1706982645145,-150.0,0.00022902,2]
[313233645,1706982645154,-150.0,0.00022907,2]
[313233646,1706982645163,-1500.0,0.00022908,2]
[313233647,1706982645172,-150.0,0.00022909,2]
[313233648,1706982645182,-150.0,0.00022916,2]
[313233649,1706982645191,-150.0,0.00022916,2]
[313233650,1706982645201,-150.0,0.00022923,2]
[313233651,1706982645210,-150.0,0.00022924,2]
[313233652,1706982645219,-150.0,0.00022927,2]
[313233653,1706982645228,-150.0,0.00022928,2]
[313233654,1706982645237,-150.0,0.00022929,2]
[313233655,1706982645247,-150.0,0.00022929,2]
[313233656,1706982645258,-150.0,0.0002293,2]
[313233657,1706982645267,-150.0,0.0002293,2]
[313233658,1706982645276,-150.0,0.00022931,2]
[313233659,1706982645286,-155.95566187,0.00022933,2]
[313233660,1706982645295,-150.0,0.00022936,2]
[313233661,1706982645305,-150.0,0.00022941,2]
[313233662,1706982645314,-150.0,0.00022943,2]
[313233663,1706982645324,-300.0,0.00022944,2]
[313233664,1706982645333,-150.0,0.00022946,2]
[313233665,1706982645345,-150.0,0.00022947,2]
[313233666,1706982645354,-150.0,0.00022947,2]
[313233667,1706982645363,-150.0,0.00022947,2]
[313233668,1706982645372,-150.0,0.00022952,2]
[313233669,1706982645382,-150.0,0.00022954,2]
[313233670,1706982645391,-150.0,0.00022955,2]
[313233671,1706982645400,-150.0,0.00022955,2]
[313233672,1706982645410,-150.0,0.00022956,2]
[313233673,1706982645420,-163.63,0.00022957,2]
[313233674,1706982645429,-150.0,0.0002296,2]
[313233675,1706982645438,-150.0,0.00022961,2]
[313233676,1706982645447,-150.0,0.00022963,2]
[313233677,1706982645457,-150.0,0.00022965,2]
[313233678,1706982645466,-150.0,0.00022972,2]
[313233679,1706982645477,-150.0,0.00022975,2]
[313233680,1706982645487,-150.0,0.00022975,2]
[313233681,1706982645496,-150.0,0.00022975,2]
[313233682,1706982645505,-150.0,0.00022978,2]
[313233683,1706982645514,-150.0,0.00022978,2]
[313233684,1706982645523,-150.0,0.00022978,2]
[313233685,1706982645532,-150.0,0.00022982,2]
[313233686,1706982645541,-374.94226822,0.0002299,2]
[313233687,1706982645550,-374.94226822,0.0002299,2]
[313233688,1706982645559,-150.0,0.00022991,2]
[313233689,1706982645569,-150.0,0.00022991,2]
[313233690,1706982645578,-150.0,0.00022992,2]
[313233691,1706982645588,-150.0,0.00022992,2]
[313233692,1706982645598,-1371.93437864,0.00022996,2]
[313233693,1706982645607,-1053.84916775,0.00022996,2]
[313233694,1706982645616,-150.0,0.00022997,2]
[313233695,1706982645625,-345.77870134,0.00022999,10]
[313233696,1706982645634,-150.0,0.00022999,2]
[313233697,1706982645644,-150.0,0.00022999,2]
[313233698,1706982645653,-150.0,0.00022999,2]
[313233699,1706982645662,-150.0,0.00022999,2]
[313233700,1706982645672,-150.0,0.00022999,2]
[313233701,1706982645681,-37949.36551311,0.00022999,3]
[313233703,1706982646323,-150.0,0.00022728,2]
[313233704,1706982646333,-215.44803519,0.00022748,2]
[313233705,1706982646344,-150.0,0.00022749,2]
[313233706,1706982646353,-150.0,0.00022751,2]
[313233708,1706982646362,-150.0,0.00022756,2]
[313233710,1706982646372,-150.0,0.00022762,2]
[313233712,1706982646381,-150.0,0.00022769,2]
[313233714,1706982646390,-150.0,0.0002279,2]
[313233716,1706982646399,-150.0,0.0002281,2]
[313233718,1706982646408,-150.0,0.00022812,2]
[313233719,1706982646418,-150.0,0.00022813,2]
[313233720,1706982646428,-150.0,0.00022828,2]
[313233721,1706982646438,-150.0,0.00022832,2]
[313233722,1706982646447,-150.0,0.00022842,2]
[313233723,1706982646457,-150.0,0.00022859,2]
[313233724,1706982646466,-150.0,0.00022885,2]
[313233725,1706982646476,-150.0,0.00022891,2]
[313233726,1706982646485,-150.0,0.00022896,2]
[313233727,1706982646495,-5000.0,0.000229,2]
[313233728,1706982646506,-150.0,0.00022904,2]
[313233729,1706982646516,-150.0,0.00022927,2]
[313233730,1706982646525,-150.0,0.00022936,2]
[313233731,1706982646534,-150.0,0.00022941,2]
[313233732,1706982646543,-150.0,0.00022962,2]
[313233733,1706982646552,-150.0,0.00022962,2]
[313233734,1706982646561,-150.0,0.00022982,2]
[313233735,1706982646571,-150.0,0.00022982,2]
[313233736,1706982646580,-150.0,0.00022995,2]
[313233737,1706982646589,-8015.3537423,0.00022999,3]
[313233738,1706982646601,-3036.72489089,0.00022999,3]
[313233739,1706982646611,-2726.04404272,0.00022999,3]
[313233740,1706982646623,-418.84953567,0.00022999,3]
[313233741,1706982646634,-1829.741276,0.00022999,3]
[313233791,1706982647173,-142423.56397274,0.00022999,3]
[313233793,1706982647184,-10181.62236793,0.00022999,3]
[313233795,1706982647197,-327496.90234269,0.00022999,3]
[313233797,1706982647206,-628211.69995427,0.00023,2]
[313233800,1706982647217,-13241.90885032,0.00023,2]
[313233802,1706982647230,-32650.92860337,0.00023,2]
[313233804,1706982647242,-1038.66066379,0.00023,2]
[313233903,1706982658807,1685.0963,0.00022468,2]
[313233904,1706982661372,550.0,0.00022,3]
[313233905,1706982669345,1000.0,0.000225,2]
[313233906,1706982688400,189.17,0.00021894,2]
[313233907,1706982721011,56038.3918,0.00022468,2]
[313233908,1706982776523,163.57,0.00022054,2]
[313233912,1706983026554,152.46,0.00019969,2]
[313233913,1706983069185,568.06,0.00021885,2]
[313233914,1706983109802,157.64,0.00021883,2]
[313233915,1706983252769,502.88579647,0.00021883,7]
[313233916,1706983304455,163.57,0.00022045,2]
[313233917,1706983324206,206.0,0.00021628,2]
[313233918,1706983450312,152.46,0.00019961,2]
[313233919,1706983512765,545.55,0.00021877,2]
[313233920,1706983544606,157.64,0.00021877,2]
[313233921,1706983549017,155.0,0.00021876,2]
[313233922,1706983656006,-155.0,0.00022627,2]
[313233923,1706983656026,-883.0,0.00022628,2]
[313233924,1706983656048,-534.74372555,0.00022629,2]
[313233925,1706983656069,-157.62891126,0.0002263,2]
[313233926,1706983656088,-155.0,0.00022656,2]
[313233927,1706983656107,-500.0,0.00022667,2]
[313233928,1706983656130,-1500.0,0.00022725,2]
[313233929,1706983656152,-150.0,0.0002273,2]
[313233930,1706983656173,-150.0,0.0002273,2]
[313233931,1706983656195,-150.0,0.00022735,2]
[313233932,1706983656214,-1500.0,0.00022736,2]
[313233933,1706983656235,-228.32754821,0.00022736,2]
[313233934,1706983656255,-150.0,0.00022738,2]
[313233935,1706983656276,-150.0,0.00022739,2]
[313233936,1706983656297,-150.0,0.00022744,2]
[313233937,1706983656317,-150.0,0.00022744,2]
[313233938,1706983656338,-150.0,0.00022746,2]
[313233939,1706983656357,-156.69897819,0.00022747,2]
[313233940,1706983656377,-3367.91,0.00022747,2]
[313233941,1706983656397,-9999.99,0.00022751,2]
[313233942,1706983656418,-4444.45,0.00022752,2]
[313233943,1706983656438,-1500.0,0.00022752,2]
[313233944,1706983656459,-150.0,0.00022756,2]
[313233945,1706983656479,-1500.0,0.00022767,2]
[313233946,1706983656501,-150.0,0.00022779,2]
[313233947,1706983656522,-150.0,0.0002278,2]
[313233948,1706983656546,-150.0,0.00022785,2]
[313233949,1706983656567,-150.0,0.00022785,2]
[313233950,1706983656588,-311.70538894,0.00022793,2]
[313233951,1706983656609,-1562.83568944,0.00022798,2]
[313233952,1706983656631,-150.0,0.00022807,2]
[313233953,1706983656652,-150.0,0.0002281,2]
[313233954,1706983656672,-150.0,0.00022813,2]
[313233955,1706983656692,-1500.0,0.0002282,2]
[313233956,1706983656718,-150.0,0.00022829,2]
[313233957,1706983656740,-150.0,0.00022831,2]
[313233958,1706983656761,-1500.0,0.00022834,2]
[313233959,1706983656783,-150.0,0.0002284,2]
[313233960,1706983656803,-300.0,0.00022842,2]
[313233961,1706983656824,-150.0,0.00022843,2]
[313233962,1706983656844,-150.0,0.00022845,2]
[313233963,1706983656863,-150.0,0.00022851,2]
[313233964,1706983656882,-150.0,0.00022862,2]
[313233965,1706983656902,-150.0,0.00022877,2]
[313233966,1706983656927,-150.0,0.0002288,2]
[313233967,1706983656948,-150.0,0.00022885,2]
[313233968,1706983656969,-150.0,0.00022886,2]
[313233969,1706983656994,-275.98623396,0.00022888,2]
[313233970,1706983657018,-150.0,0.00022888,2]
[313233971,1706983657042,-14862.77395431,0.00022889,2]
[313233972,1706983657065,-150.0,0.00022895,2]
[313233973,1706983657086,-1000.0,0.00022897,2]
[313233974,1706983657104,-1500.0,0.00022897,2]
[313233975,1706983657125,-407.19395765,0.00022898,2]
[313233976,1706983657151,-4360.14590484,0.00022898,2]
[313233977,1706983657174,-184.96227971,0.00022898,2]
[313233978,1706983657195,-184.96227971,0.00022899,2]
[313233979,1706983657219,-387.97171508,0.00022899,2]
[313233980,1706983657240,-184.96227971,0.00022899,2]
[313233981,1706983657261,-1426.49505328,0.000229,2]
[313233982,1706983657283,-3953.68610016,0.000229,2]
[313233983,1706983691702,300.0,0.000225,8]
[313234004,1706983831508,-155.0,0.00022599,2]
[313234005,1706983831517,-700.0,0.000226,8]
[313234006,1706983831526,-255.2164918,0.00022629,2]
[313234007,1706983831535,-1100.0,0.000227,8]
[313234008,1706983831544,-1500.0,0.000228,8]
[313234009,1706983831553,-13163.23029984,0.000229,2]
[313234010,1706983831562,-157.25879481,0.000229,2]
[313234011,1706983831572,-153.18424468,0.000229,2]
[313234012,1706983831582,-5000.0,0.000229,2]
[313234013,1706983831595,-184.96227971,0.000229,2]
[313234014,1706983831604,-599.77323338,0.000229,2]
[313234015,1706983831625,-916.66001564,0.000229,6]
[313234016,1706983831635,-2830.48941158,0.000229,2]
[313234017,1706983831645,-245.24965182,0.000229,2]
[313234018,1706983831654,-719.32617096,0.000229,2]
[313234019,1706983831665,-1900.0,0.000229,8]
[313234020,1706983831675,-227.50598665,0.00022901,2]
[313234021,1706983831684,-1500.0,0.00022902,2]
[313234022,1706983831693,-150.0,0.00022902,2]
[313234023,1706983831703,-1500.0,0.00022903,2]
[313234024,1706983831712,-150.0,0.00022905,2]
[313234025,1706983831722,-1500.0,0.00022905,2]
[313234026,1706983831731,-150.0,0.00022911,2]
[313234027,1706983831741,-150.0,0.00022913,2]
[313234028,1706983831751,-150.0,0.00022926,2]
[313234029,1706983831760,-499.99,0.00022926,2]
[313234030,1706983831770,-3766.76,0.00022926,2]
[313234031,1706983831780,-1500.0,0.0002293,2]
[313234032,1706983831790,-150.0,0.00022935,2]
[313234033,1706983831801,-150.0,0.00022937,2]
[313234035,1706983831811,-150.0,0.00022939,2]
[313234037,1706983831820,-150.0,0.0002294,2]
[313234039,1706983831830,-150.0,0.00022945,2]
[313234041,1706983831839,-150.0,0.00022961,2]
[313234043,1706983831850,-150.0,0.00022969,2]
[313234045,1706983831859,-300.0,0.00022971,2]
[313234047,1706983831868,-150.0,0.00022973,2]
[313234049,1706983831877,-150.0,0.00022978,2]
[313234051,1706983831887,-500.0,0.0002298,2]
[313234053,1706983831896,-500.0,0.0002298,2]
[313234056,1706983831905,-500.0,0.0002298,2]
[313234058,1706983831914,-366.53,0.0002298,2]
[313234061,1706983831923,-1500.0,0.00022985,2]
[313234064,1706983831933,-150.0,0.00022988,2]
[313234066,1706983831942,-263.87823981,0.00022988,2]
[313234068,1706983831951,-150.0,0.00022994,2]
[313234070,1706983831960,-155.25152899,0.00022996,2]
[313234073,1706983831971,-155.8425721,0.00022996,2]
[313234075,1706983831980,-155.43310874,0.00022996,2]
[313234077,1706983831989,-163.72705546,0.00022996,2]
[313234079,1706983831998,-268.23016042,0.00022996,2]
[313234081,1706983832007,-155.0,0.00022996,2]
[313234083,1706983832016,-226.72810079,0.00022996,2]
[313234085,1706983832025,-527.13316822,0.00022996,2]
[313234087,1706983832034,-165.86369279,0.00022997,2]
[313234089,1706983832044,-156.64964294,0.00022997,2]
[313234091,1706983832053,-287.52314544,0.00022997,2]
[313234093,1706983832063,-262.22168542,0.00022997,2]
[313234095,1706983832072,-155.69332566,0.00022997,2]
[313234097,1706983832081,-155.09419719,0.00022997,2]
[313234099,1706983832092,-336.7179586,0.00022997,2]
[313234101,1706983832101,-303.23549832,0.00022997,2]
[313234104,1706983832114,-269.58359667,0.00022997,2]
[313234106,1706983832123,-155.27174667,0.00022997,2]